[Event "European Women Rapid-ch 2023"]
[Site "Monaco"]
[Date "2024.01.13"]
[Round "4.2"]
[White "Khademalsharieh, Sarasadat"]
[Black "Zimina, Olga"]
[Result "1-0"]
[ECO "D10"]
[WhiteElo "2486"]
[BlackElo "2291"]
[Annotator "RC"]
[PlyCount "77"]
[EventDate "2023.12.19"]
[EventType "swiss"]
[EventCountry "MNC"]
[SourceTitle "playchess.com"]
[Source "ChessBase"]
[SourceQuality "1"]
[TimeControl "900+10"]

1. d4 {[%emt 0:00:03]} d5 {[%emt 0:00:01]} 2. c4 {[%emt 0:00:03]} c6 {[%emt 0:00:01]} 3. cxd5 {[%emt 0:00:09]} cxd5 {[%emt 0:00:02]} 4. Nc3 {[%emt 0:00:02]} Nc6 {[%emt 0:00:04]} 5. Bf4 {[%emt 0:00:05]} Nf6 {[%emt 0:00:02]} 6. e3 {[%emt 0:00:02]} Bf5 {[%emt 0:00:03]} 7. Be2 {[%emt 0:00:22]} Qb6 {[%emt 0:00:49]} 8. Qb3 {[%emt 0:01:24]} e6 {[%emt 0:01:42]} 9. Nf3 {[%emt 0:00:25]} Qxb3 {[%emt 0:01:51]} 10. axb3 {[%emt 0:00:03]} Nh5 {[%emt 0:00:47]} 11. Be5 {[%emt 0:02:13]} f6 {[%emt 0:00:36]} 12. Bg3 {[%emt 0:02:34]} Nxg3 {[%emt 0:00:13]} 13. hxg3 {[%emt 0:00:01]} O-O-O {[%emt 0:04:23]} 14. Bb5 {[%emt 0:01:53]} Kb8 {[%emt 0:00:02]} 15. Bxc6 {[%emt 0:00:19]} bxc6 {[%emt 0:00:02]} 16. Kd2 {[%emt 0:00:26]} g5 {[%emt 0:00:43]} 17. Ra6 {[%emt 0:00:13]} Rc8 {[%emt 0:00:54]} 18. Ne1 {[%emt 0:01:52]} Kb7 {[%emt 0:00:17]} 19. Ra4 {[%emt 0:00:06]} c5 {[%emt 0:00:12]} 20. Nd3 {[%emt 0:00:53]} cxd4 {[%emt 0:00:05]} 21. exd4 {[%emt 0:00:02]} h5 {[%emt 0:01:19]} 22. Rha1 {[%emt 0:00:02]} Ra8 {[%emt 0:00:01]} 23. Nc5+ {[%emt 0:00:12]} Bxc5 {[%emt 0:00:04]} 24. dxc5 {[%emt 0:00:02]} a6 {[%emt 0:00:17]} 25. Rb4+ {[%emt 0:00:45]} Kc7 {[%emt 0:00:50]} 26. Na4 {[%emt 0:00:21]} h4 {[%emt 0:00:58]} 27. g4 {[%emt 0:01:43]} Bg6 {[%emt 0:00:01]} 28. Rb6 {[%emt 0:00:03]} Bf7 {[%emt 0:00:18]} 29. Nc3 {[%emt 0:00:01]} Rhb8 {[%emt 0:00:23]} 30. Raxa6 {[%emt 0:00:03]} Rxa6 {[%emt 0:00:04]} 31. Rxa6 {[%emt 0:00:24]} Bg8 {[%emt 0:00:43]} 32. Kc2 {[%emt 0:00:40]} Bh7+ {[%emt 0:00:01]} 33. Kc1 {[%emt 0:00:10]} Rxb3 {[%emt 0:00:10]} 34. Rxe6 {[%emt 0:00:04]} d4 {[%emt 0:00:26]} 35. Nd5+ {[%emt 0:00:03]} Kd7 {[%emt 0:00:55]} 36. Ra6 {[%emt 0:01:06]} Bd3 {[%emt 0:00:18]} 37. Rd6+ {[%emt 0:00:05]} Kc8 {[%emt 0:00:08]} 38. c6 {[%emt 0:00:18]} Ba6 {[%emt 0:00:30]} 39. c7 {[%emt 0:00:14]} 1-0

[Event "European Women Rapid-ch 2023"]
[Site "Monaco"]
[Date "2024.01.13"]
[Round "4.3"]
[White "Hrebenshchykova, Yelyzaveta"]
[Black "Batsiashvili, Nino"]
[Result "0-1"]
[ECO "B01"]
[WhiteElo "2275"]
[BlackElo "2451"]
[Annotator "RC"]
[PlyCount "85"]
[EventDate "2023.12.19"]
[EventType "swiss"]
[EventCountry "MNC"]
[SourceTitle "playchess.com"]
[Source "ChessBase"]
[SourceQuality "1"]
[TimeControl "900+10"]

1. e4 {[%emt 0:00:01]} d5 {[%emt 0:00:00]} 2. exd5 {[%emt 0:00:02]} Qxd5 {[%emt 0:00:02]} 3. Nc3 {[%emt 0:00:04]} Qa5 {[%emt 0:00:01]} 4. Bc4 {[%emt 0:01:07]} Nf6 {[%emt 0:00:13]} 5. d3 {[%emt 0:00:19]} Bg4 {[%emt 0:01:17]} 6. f3 {[%emt 0:01:04]} Bh5 {[%emt 0:01:02]} 7. Qe2 {[%emt 0:01:05]} e6 {[%emt 0:01:32]} 8. g4 {[%emt 0:02:22]} Bg6 {[%emt 0:00:02]} 9. h4 {[%emt 0:00:01]} h6 {[%emt 0:01:29]} 10. Bd2 {[%emt 0:02:26]} Bb4 {[%emt 0:00:18]} 11. O-O-O {[%emt 0:01:27]} Nc6 {[%emt 0:00:19]} 12. a3 {[%emt 0:03:01]} Bxc3 {[%emt 0:02:43]} 13. Bxc3 {[%emt 0:00:03]} Qb6 {[%emt 0:00:02]} 14. Nh3 {[%emt 0:00:40]} Nd4 {[%emt 0:02:30]} 15. Qg2 {[%emt 0:00:04]} O-O-O {[%emt 0:00:09]} 16. Nf4 {[%emt 0:00:45]} Nd5 {[%emt 0:01:07]} 17. Bxd5 {[%emt 0:01:37]} exd5 {[%emt 0:00:04]} 18. h5 {[%emt 0:00:02]} Bh7 {[%emt 0:00:03]} 19. Rhe1 {[%emt 0:00:28]} Nb5 {[%emt 0:00:58]} 20. Bxg7 {[%emt 0:00:45]} Rhg8 {[%emt 0:00:02]} 21. Be5 {[%emt 0:00:01]} f6 {[%emt 0:00:07]} 22. Bc3 {[%emt 0:00:01]} Nxc3 {[%emt 0:00:02]} 23. bxc3 {[%emt 0:00:01]} Qd6 {[%emt 0:00:43]} 24. Ne6 {[%emt 0:00:21]} Rde8 {[%emt 0:00:01]} 25. Nd4 {[%emt 0:00:09]} Qxa3+ {[%emt 0:00:10]} 26. Kd2 {[%emt 0:00:01]} Qd6 {[%emt 0:00:03]} 27. Kc1 {[%emt 0:00:27]} f5 {[%emt 0:00:14]} 28. Rxe8+ {[%emt 0:00:04]} Rxe8 {[%emt 0:00:01]} 29. gxf5 {[%emt 0:00:02]} Bxf5 {[%emt 0:00:11]} 30. Nxf5 {[%emt 0:00:23]} Qf4+ 31. Kb2 {[%emt 0:00:05]} Qxf5 {[%emt 0:00:02]} 32. Qg4 {[%emt 0:00:31]} Rf8 {[%emt 0:01:22]} 33. Re1 {[%emt 0:00:22]} Qxg4 {[%emt 0:00:14]} 34. fxg4 {[%emt 0:00:00]} Kd7 {[%emt 0:00:00]} 35. Kc1 {[%emt 0:00:52]} Kd6 {[%emt 0:00:18]} 36. d4 {[%emt 0:00:12]} Rg8 {[%emt 0:00:05]} 37. Rg1 {[%emt 0:00:10]} a5 {[%emt 0:00:07]} 38. Kd2 {[%emt 0:00:01]} a4 {[%emt 0:00:21]} 39. Ke3 {[%emt 0:00:01]} Ke6 {[%emt 0:01:17]} 40. Kf4 {[%emt 0:00:01]} Kf6 {[%emt 0:00:01]} 41. Re1 {[%emt 0:00:35]} a3 {[%emt 0:00:06]} 42. Ra1 {[%emt 0:00:06]} Ra8 {[%emt 0:00:02]} 43. g5+ {[%emt 0:00:05]} 0-1

[Event "European Women Rapid-ch 2023"]
[Site "Monaco"]
[Date "2024.01.13"]
[Round "4.4"]
[White "Salimova, Nurgyul"]
[Black "Osmak, Yuliia"]
[Result "1/2-1/2"]
[ECO "D03"]
[WhiteElo "2426"]
[BlackElo "2450"]
[Annotator "RC"]
[PlyCount "158"]
[EventDate "2023.12.19"]
[EventType "swiss"]
[EventCountry "MNC"]
[SourceTitle "playchess.com"]
[Source "ChessBase"]
[SourceQuality "1"]
[TimeControl "900+10"]

1. d4 {[%emt 0:00:02]} Nf6 {[%emt 0:00:01]} 2. Nf3 {[%emt 0:00:01]} e6 {[%emt 0:00:01]} 3. Bg5 {[%emt 0:00:02]} d5 {[%emt 0:00:21]} 4. e3 {[%emt 0:00:15]} Be7 {[%emt 0:00:15]} 5. Nbd2 {[%emt 0:00:09]} O-O {[%emt 0:00:39]} 6. Bd3 {[%emt 0:00:04]} c5 {[%emt 0:00:13]} 7. c3 {[%emt 0:00:05]} b6 {[%emt 0:00:28]} 8. Qe2 {[%emt 0:00:22]} Bb7 {[%emt 0:00:18]} 9. O-O {[%emt 0:02:18]} Nbd7 {[%emt 0:00:31]} 10. a4 {[%emt 0:02:39]} Qc7 {[%emt 0:01:17]} 11. e4 {[%emt 0:01:06]} dxe4 {[%emt 0:00:57]} 12. Nxe4 {[%emt 0:00:04]} Rfe8 {[%emt 0:00:36]} 13. Rad1 {[%emt 0:00:56]} h6 {[%emt 0:00:27]} 14. Bc1 {[%emt 0:01:50]} Nxe4 {[%emt 0:02:24]} 15. Bxe4 {[%emt 0:00:02]} Bxe4 {[%emt 0:00:07]} 16. Qxe4 {[%emt 0:00:01]} Nf6 {[%emt 0:00:02]} 17. Qe2 {[%emt 0:00:18]} Rad8 {[%emt 0:00:18]} 18. g3 {[%emt 0:00:34]} Qc6 {[%emt 0:00:26]} 19. dxc5 {[%emt 0:04:09]} bxc5 {[%emt 0:01:54]} 20. a5 {[%emt 0:00:13]} Qa4 {[%emt 0:00:40]} 21. a6 {[%emt 0:00:25]} Nd5 {[%emt 0:01:39]} 22. Ne5 {[%emt 0:00:11]} Rd6 {[%emt 0:00:36]} 23. Rfe1 {[%emt 0:01:54]} Red8 {[%emt 0:02:59]} 24. Qh5 {[%emt 0:00:12]} Qe8 {[%emt 0:00:11]} 25. Ng4 {[%emt 0:00:28]} f5 {[%emt 0:00:45]} 26. Qxe8+ {[%emt 0:00:15]} Rxe8 {[%emt 0:00:01]} 27. Ne3 {[%emt 0:00:31]} Red8 {[%emt 0:00:43]} 28. Nxd5 {[%emt 0:00:11]} Rxd5 {[%emt 0:00:01]} 29. Rxd5 {[%emt 0:00:04]} Rxd5 {[%emt 0:00:01]} 30. Bf4 {[%emt 0:00:25]} Kf7 {[%emt 0:00:17]} 31. Bb8 {[%emt 0:00:20]} Rd8 {[%emt 0:00:07]} 32. Bc7 {[%emt 0:00:07]} Rc8 {[%emt 0:00:10]} 33. Be5 {[%emt 0:00:04]} Rc6 {[%emt 0:00:19]} 34. Rd1 {[%emt 0:00:02]} Rxa6 {[%emt 0:00:11]} 35. Rd7 {[%emt 0:00:01]} Ke8 {[%emt 0:00:14]} 36. Rb7 {[%emt 0:00:14]} g5 {[%emt 0:00:09]} 37. Kg2 {[%emt 0:00:29]} Rb6 {[%emt 0:00:07]} 38. Rxa7 {[%emt 0:00:04]} Rxb2 {[%emt 0:00:02]} 39. Ra8+ {[%emt 0:00:13]} Kf7 {[%emt 0:00:03]} 40. Rh8 {[%emt 0:00:16]} Re2 {[%emt 0:00:27]} 41. Rh7+ {[%emt 0:00:10]} Kf8 {[%emt 0:00:35]} 42. Rh8+ {[%emt 0:00:03]} Kf7 {[%emt 0:00:03]} 43. Rh7+ {[%emt 0:00:01]} Ke8 {[%emt 0:00:10]} 44. Bg7 {[%emt 0:00:18]} Rc2 {[%emt 0:00:25]} 45. Rxh6 {[%emt 0:00:12]} Kd7 {[%emt 0:00:09]} 46. h4 {[%emt 0:00:14]} gxh4 {[%emt 0:00:06]} 47. gxh4 {[%emt 0:00:10]} c4 {[%emt 0:00:17]} 48. Bd4 {[%emt 0:00:00]} Bd6 {[%emt 0:00:03]} 49. h5 {[%emt 0:00:20]} e5 {[%emt 0:00:01]} 50. Bb6 {[%emt 0:00:15]} Rxc3 {[%emt 0:00:02]} 51. Rg6 {[%emt 0:00:02]} Rb3 {[%emt 0:00:11]} 52. Ba7 {[%emt 0:00:11]} c3 {[%emt 0:00:15]} 53. h6 {[%emt 0:00:13]} Rb4 {[%emt 0:00:23]} 54. Kh3 {[%emt 0:00:11]} c2 {[%emt 0:00:06]} 55. Be3 {[%emt 0:00:07]} Rb3 {[%emt 0:00:05]} 56. Rg1 {[%emt 0:00:11]} f4 {[%emt 0:00:14]} 57. h7 {[%emt 0:00:07]} fxe3 {[%emt 0:00:06]} 58. Rg7+ {[%emt 0:00:14]} Be7 {[%emt 0:00:08]} 59. h8=Q {[%emt 0:00:11]} c1=Q {[%emt 0:00:26]} 60. Rxe7+ {[%emt 0:00:10]} Kxe7 {[%emt 0:00:00]} 61. Qxe5+ {[%emt 0:00:01]} Kd7 {[%emt 0:00:21]} 62. Qd5+ {[%emt 0:00:01]} Kc7 {[%emt 0:00:01]} 63. Qf7+ {[%emt 0:00:26]} Kd6 {[%emt 0:00:08]} 64. Qxb3 {[%emt 0:00:02]} Qf1+ {[%emt 0:00:09]} 65. Kg4 {[%emt 0:00:12]} Qg2+ {[%emt 0:00:04]} 66. Kf4 {[%emt 0:00:08]} exf2 {[%emt 0:00:31]} 67. Qb6+ {[%emt 0:00:06]} Kd7 {[%emt 0:00:03]} 68. Qa7+ {[%emt 0:00:15]} Ke8 {[%emt 0:00:17]} 69. Qb8+ {[%emt 0:00:10]} Kf7 {[%emt 0:00:09]} 70. Qc7+ {[%emt 0:00:05]} Kg6 {[%emt 0:00:06]} 71. Qd6+ {[%emt 0:00:18]} Kh7 {[%emt 0:00:11]} 72. Qc7+ {[%emt 0:00:13]} Kh6 {[%emt 0:00:12]} 73. Qb6+ {[%emt 0:00:09]} Kh7 {[%emt 0:00:12]} 74. Qc7+ {[%emt 0:00:08]} Kh8 {[%emt 0:00:01]} 75. Qd8+ {[%emt 0:00:09]} Kg7 {[%emt 0:00:10]} 76. Qc7+ {[%emt 0:00:09]} Kg6 {[%emt 0:00:08]} 77. Qd6+ {[%emt 0:00:14]} Kg7 {[%emt 0:00:21]} 78. Qc7+ {[%emt 0:00:08]} Kh6 {[%emt 0:00:07]} 79. Qb6+ {[%emt 0:00:11]} Kh7 {[%emt 0:00:14]} 1/2-1/2

[Event "European Women Rapid-ch 2023"]
[Site "Monaco"]
[Date "2024.01.13"]
[Round "4.5"]
[White "Savina, Anastasia"]
[Black "Paehtz, Elisabeth"]
[Result "0-1"]
[ECO "A40"]
[WhiteElo "2340"]
[BlackElo "2461"]
[Annotator "RC"]
[PlyCount "74"]
[EventDate "2023.12.19"]
[EventType "swiss"]
[EventCountry "MNC"]
[SourceTitle "playchess.com"]
[Source "ChessBase"]
[SourceQuality "1"]
[TimeControl "900+10"]

1. d4 {[%emt 0:00:07]} e6 {[%emt 0:00:01]} 2. c4 {[%emt 0:00:08]} b6 {[%emt 0:00:02]} 3. e4 {[%emt 0:00:20]} Bb7 {[%emt 0:00:01]} 4. Bd3 {[%emt 0:01:10]} Bb4+ {[%emt 0:00:02]} 5. Bd2 {[%emt 0:00:34]} Bxd2+ {[%emt 0:00:03]} 6. Nxd2 {[%emt 0:00:06]} d6 {[%emt 0:00:02]} 7. Ne2 {[%emt 0:02:07]} e5 {[%emt 0:00:03]} 8. d5 {[%emt 0:00:28]} Nd7 {[%emt 0:00:10]} 9. b4 {[%emt 0:00:09]} a5 {[%emt 0:00:11]} 10. a3 {[%emt 0:00:03]} Ne7 {[%emt 0:00:03]} 11. O-O {[%emt 0:00:05]} O-O {[%emt 0:00:06]} 12. Qc2 {[%emt 0:01:28]} Ng6 {[%emt 0:00:25]} 13. g3 {[%emt 0:00:56]} Qg5 {[%emt 0:00:14]} 14. Nb3 {[%emt 0:02:55]} Nf4 {[%emt 0:02:05]} 15. Nxf4 {[%emt 0:02:11]} exf4 {[%emt 0:00:01]} 16. Qd2 {[%emt 0:00:15]} Ne5 {[%emt 0:00:04]} 17. Be2 {[%emt 0:00:02]} Ng6 {[%emt 0:01:23]} 18. c5 {[%emt 0:01:11]} Qe5 {[%emt 0:02:16]} 19. Qd4 {[%emt 0:00:49]} a4 {[%emt 0:04:04]} 20. Qxe5 {[%emt 0:00:03]} Nxe5 {[%emt 0:00:01]} 21. Nd4 {[%emt 0:01:37]} dxc5 {[%emt 0:00:10]} 22. bxc5 {[%emt 0:00:02]} bxc5 {[%emt 0:00:01]} 23. gxf4 {[%emt 0:01:00]} Ng6 {[%emt 0:00:08]} 24. Nf5 {[%emt 0:00:02]} Nxf4 {[%emt 0:00:04]} 25. Bb5 {[%emt 0:00:08]} Ba6 {[%emt 0:00:58]} 26. Bxa6 {[%emt 0:01:03]} Rxa6 {[%emt 0:00:01]} 27. Ne7+ {[%emt 0:00:06]} Kh8 {[%emt 0:00:01]} 28. f3 {[%emt 0:00:01]} g6 {[%emt 0:00:39]} 29. Kf2 {[%emt 0:00:11]} Re8 {[%emt 0:00:40]} 30. Nc6 {[%emt 0:00:30]} f5 {[%emt 0:00:50]} 31. Rfd1 {[%emt 0:00:16]} c4 {[%emt 0:01:45]} 32. exf5 {[%emt 0:00:14]} Re2+ {[%emt 0:00:39]} 33. Kf1 {[%emt 0:00:07]} gxf5 {[%emt 0:00:17]} 34. Rab1 {[%emt 0:00:08]} Rxh2 {[%emt 0:00:08]} 35. Rb8+ {[%emt 0:00:04]} Kg7 {[%emt 0:00:01]} 36. Rd4 {[%emt 0:00:07]} Nxd5 {[%emt 0:00:39]} 37. Ne5 {[%emt 0:00:25]} Ne3+ {[%emt 0:00:04]} 0-1

[Event "European Women Rapid-ch 2023"]
[Site "Monaco"]
[Date "2024.01.13"]
[Round "4.6"]
[White "Stefanova, Antoaneta"]
[Black "Papp, Petra"]
[Result "1/2-1/2"]
[ECO "A49"]
[WhiteElo "2431"]
[BlackElo "2267"]
[Annotator "ChessBase"]
[PlyCount "105"]
[EventDate "2023.12.19"]
[EventType "swiss"]
[EventCountry "MNC"]
[SourceTitle "playchess.com"]
[Source "ChessBase"]
[SourceQuality "1"]
[TimeControl "900+10"]

1. d4 {[%emt 0:00:01]} Nf6 {[%emt 0:00:02]} 2. Nf3 {[%emt 0:00:02]} g6 {[%emt 0:00:04]} 3. g3 {[%emt 0:00:02]} Bg7 {[%emt 0:00:02]} 4. Bg2 O-O {[%emt 0:00:06]} 5. O-O {[%emt 0:00:02]} d6 {[%emt 0:00:04]} 6. a4 {[%emt 0:00:04]} c6 {[%emt 0:02:16]} 7. Nc3 {[%emt 0:00:41]} d5 {[%emt 0:00:31]} 8. a5 {[%emt 0:00:31]} h6 {[%emt 0:01:53]} 9. Re1 {[%emt 0:00:23]} c5 {[%emt 0:02:58]} 10. dxc5 {[%emt 0:01:23]} Nc6 {[%emt 0:00:07]} 11. Qd2 {[%emt 0:04:53]} d4 {[%emt 0:02:30]} 12. Nb5 {[%emt 0:01:35]} Ne4 {[%emt 0:00:03]} 13. Qd3 {[%emt 0:00:08]} Nxc5 {[%emt 0:00:39]} 14. Qc4 {[%emt 0:00:58]} Na6 {[%emt 0:00:52]} 15. e3 {[%emt 0:00:29]} e5 {[%emt 0:01:39]} 16. exd4 {[%emt 0:00:33]} exd4 {[%emt 0:00:36]} 17. Bd2 {[%emt 0:02:44]} Be6 {[%emt 0:00:03]} 18. Qa4 {[%emt 0:00:10]} Re8 {[%emt 0:00:33]} 19. Rad1 {[%emt 0:00:41]} Rc8 {[%emt 0:00:18]} 20. Bc3 {[%emt 0:01:22]} Nc5 {[%emt 0:00:48]} 21. Qa1 {[%emt 0:00:09]} Bg4 {[%emt 0:02:01]} 22. Rxe8+ {[%emt 0:00:02]} Qxe8 {[%emt 0:00:01]} 23. Nbxd4 {[%emt 0:00:09]} Nxd4 {[%emt 0:00:19]} 24. Bxd4 {[%emt 0:00:01]} Bxd4 {[%emt 0:00:31]} 25. Rxd4 {[%emt 0:00:01]} Bf5 {[%emt 0:00:03]} 26. Rd2 {[%emt 0:00:24]} Ne6 {[%emt 0:00:17]} 27. c3 {[%emt 0:00:09]} Qb5 {[%emt 0:00:03]} 28. Bf1 {[%emt 0:00:29]} Qc6 {[%emt 0:00:12]} 29. Ne5 {[%emt 0:00:07]} Qc7 {[%emt 0:00:03]} 30. Nf3 {[%emt 0:01:12]} Nc5 {[%emt 0:00:00]} 31. Nd4 {[%emt 0:00:15]} Be4 {[%emt 0:00:03]} 32. f3 {[%emt 0:00:07]} Bc6 {[%emt 0:00:14]} 33. b4 {[%emt 0:00:08]} Nd7 {[%emt 0:00:30]} 34. Nxc6 {[%emt 0:00:21]} Qxc6 {[%emt 0:00:03]} 35. c4 {[%emt 0:00:02]} Re8 {[%emt 0:00:16]} 36. f4 {[%emt 0:00:13]} Nf6 {[%emt 0:00:12]} 37. b5 {[%emt 0:00:12]} Qc5+ {[%emt 0:00:16]} 38. Qd4 {[%emt 0:00:03]} Qf5 {[%emt 0:00:10]} 39. Qxa7 {[%emt 0:00:13]} Ng4 {[%emt 0:00:06]} 40. Qd4 {[%emt 0:00:27]} Qb1 {[%emt 0:00:07]} 41. Rd1 {[%emt 0:00:09]} Qc2 {[%emt 0:00:15]} 42. Qd2 {[%emt 0:00:04]} Qe4 {[%emt 0:00:10]} 43. Qd3 {[%emt 0:00:07]} Qe7 {[%emt 0:00:09]} 44. Qd4 {[%emt 0:00:15]} Qa3 {[%emt 0:00:09]} 45. a6 {[%emt 0:00:24]} bxa6 {[%emt 0:00:07]} 46. bxa6 {[%emt 0:00:01]} Qxa6 {[%emt 0:00:04]} 47. c5 {[%emt 0:00:09]} Qa2 {[%emt 0:00:14]} 48. Rd2 {[%emt 0:00:06]} Qb1 {[%emt 0:00:09]} 49. Rd1 {[%emt 0:00:14]} Qc2 {[%emt 0:00:06]} 50. Rd2 {[%emt 0:00:02]} Qc1 {[%emt 0:00:10]} 51. Rd1 {[%emt 0:00:19]} Qc2 {[%emt 0:00:01]} 52. Rd2 {[%emt 0:00:03]} Qc1 {[%emt 0:00:04]} 53. Rd1 {[%emt 0:00:11]} 1/2-1/2

[Event "European Women Rapid-ch 2023"]
[Site "Monaco"]
[Date "2024.01.13"]
[Round "4.7"]
[White "Schulze, Lara"]
[Black "Hunt, Harriet V"]
[Result "1/2-1/2"]
[ECO "B53"]
[WhiteElo "2285"]
[BlackElo "2306"]
[Annotator "TA"]
[PlyCount "77"]
[EventDate "2023.12.19"]
[EventType "swiss"]
[EventCountry "MNC"]
[SourceTitle "playchess.com"]
[Source "ChessBase"]
[SourceQuality "1"]
[TimeControl "900+10"]

{[%evp 20,77,2,21,7,8,23,21,27,0,28,0,0,0,49,56,59,0,56,62,58,54,54,47,44,41,114,133,839,850,1112,807,1076,204,181,170,205,143,126,60,142,139,139,154,151,144,147,114,127,40,47,0,0,0,0,0,0,0,0,0]} 1. e4 {[%emt 0:00:02]} c5 {[%emt 0:00:02]} 2. Nf3 {[%emt 0:00:03]} d6 {[%emt 0:00:02]} 3. d4 {[%emt 0:00:34]} cxd4 {[%emt 0:00:02]} 4. Qxd4 {[%emt 0:00:02]} Nc6 {[%emt 0:00:04]} 5. Bb5 {[%emt 0:00:01]} Bd7 {[%emt 0:00:02]} 6. Bxc6 {[%emt 0:00:02]} Bxc6 {[%emt 0:00:02]} 7. Nc3 {[%emt 0:00:04]} Nf6 {[%emt 0:00:06]} 8. Bg5 {[%emt 0:00:04]} e6 {[%emt 0:00:01]} 9. O-O-O {[%emt 0:00:03]} Be7 {[%emt 0:00:02]} 10. Rhe1 {[%emt 0:00:02]} O-O {[%emt 0:00:16]} 11. e5 {[%emt 0:00:03]} dxe5 {[%emt 0:00:11]} 12. Nxe5 {[%emt 0:00:02]} Qa5 {[%emt 0:01:43]} 13. Nxc6 {[%emt 0:01:42]} bxc6 {[%emt 0:00:18]} 14. Qe5 {[%emt 0:00:43]} Qa6 {[%emt 0:02:58]} (14... c5 $5) 15. Qe2 {[%emt 0:00:56]} Qa5 {[%emt 0:00:30]} (15... Qb7 $11) 16. Qe5 $1 $14 {[%emt 0:00:58]} Qa6 {[%emt 0:00:09]} 17. Ne4 {[%emt 0:06:52]} Qxa2 {[%emt 0:03:01]} 18. Bxf6 {[%emt 0:01:37]} (18. Nxf6+ $14 Bxf6 19. Bxf6 gxf6 20. Qg3+ (20. Qxf6 Qa1+ 21. Kd2 Qa5+ 22. Ke2 Rfd8 $16) 20... Kh8 21. Qc3 Qa1+ 22. Kd2 Rfd8+ 23. Ke3 (23. Ke2 Qa6+ 24. Kf3 Kg7 $17) 23... Rxd1 24. Qxf6+ Kg8 25. Qg5+ Kf8 26. Qc5+ Kg8 27. Qg5+ Kf8 28. Qc5+ Kg8 29. Qg5+) 18... gxf6 {[%emt 0:01:37]} (18... Rfd8 $11 19. Rd3 (19. Bxe7 $2 Qa1#) (19. Rxd8+ Rxd8 20. b4 gxf6 $11) 19... Qa1+ (19... Bxf6 $2 20. Nxf6+ Kh8 21. Ra3 $18) 20. Kd2 Bb4+ (20... Rxd3+ 21. Kxd3 Rd8+ 22. Ke2 $11) 21. Nc3 Rxd3+ 22. Kxd3 Qa6+ 23. Kd2 gxf6 24. Qxf6 Bxc3+ 25. bxc3 Qa5) 19. Nxf6+ {[%emt 0:00:09]} Bxf6 {[%emt 0:00:06]} 20. Qxf6 {[%emt 0:00:03] b3 ist eine echte Drohung.} Qa1+ {[%emt 0:00:07] Schwarz hat schwache schwarze Felder} 21. Kd2 {[%emt 0:00:01]} Rfd8+ {[%emt 0:00:37]} 22. Ke2 {[%emt 0:00:13] Tanz auf der Rasierklinge.} Qa6+ {[%emt 0:00:09]} (22... Qa5 $1 $14) 23. Kf3 $16 {[%emt 0:00:22]} Qa5 {[%emt 0:01:26][%mdl 8192]} (23... Rxd1 $16 24. Rxd1 c5 25. Rd8+ Rxd8 26. Qg5+ (26. Qxd8+ Kg7 $18) 26... Kh8 27. Qxd8+ Kg7 28. Qg5+ Kh8) 24. Re5 $1 $18 {[%emt 0:00:43]} Qc7 {[%emt 0:01:03]} 25. Rg5+ {[%emt 0:02:12]} Kf8 {[%emt 0:00:01]} 26. Qh6+ $2 {[%emt 0:00:27]} (26. Rh5 {[%cal Oh5h7] Droht Matt per Rxh7!} Rxd1 27. Rxh7) 26... Ke7 {[%emt 0:00:04]} 27. Re1 {[%emt 0:00:13]} Qd6 {[%emt 0:01:03]} 28. Rg7 {[%emt 0:00:48] Schwarz muss nun Qh4+ beachten.} (28. Qxh7 Rh8 29. Qe4 Rab8 $11) 28... Qd5+ {[%emt 0:00:29] [#]} 29. Kg3 {[%emt 0:00:04] Weiß hat aktiveres Spiel.} ({Günstiger ist} 29. Re4 $1 $16 {Droht Qh4+ und aus.} Rf8 30. Qxh7 (30. Rxh7 Rab8 $16)) 29... Rg8 {[%emt 0:00:52]} (29... Qf5 $1 $14) 30. Qxh7 $16 {[%emt 0:00:14]} Rxg7+ {[%emt 0:00:08]} 31. Qxg7 {[%emt 0:00:01][%mdl 4096] Endspiel. KQR-KQR} Rb8 {[%emt 0:00:20]} 32. h4 {[%emt 0:00:15]} Rb4 {[%emt 0:00:28]} 33. f4 {[%emt 0:00:18]} Qd2 {[%emt 0:00:35][%csl LRc2,LRe1,LRf4] [#]} 34. Qe5 {[%emt 0:00:29]} (34. Qg5+ $1 $16 Ke8 35. Ra1 Qe3+ 36. Kh2) 34... Qxc2 $14 {[%emt 0:00:55]} 35. Qc7+ {[%emt 0:00:13]} (35. Ra1 $14 {ist eher angebracht.} Qd3+ 36. Kh2) 35... Ke8 $11 {[%emt 0:00:45] Die Stellung ist ausgeglichen.} 36. Qc8+ {[%emt 0:00:13]} Ke7 {[%emt 0:00:00]} 37. Qc7+ {[%emt 0:00:09]} Ke8 {[%emt 0:00:00]} 38. Qc8+ {[%emt 0:00:15]} Ke7 {[%emt 0:00:01]} 39. Qc7+ {[%emt 0:00:01] Gewichteter Fehlerwert: Weiß=0.41/Schwarz=0.18 (sehr präzise) .  Verlustzug:     	---       	Schwarz=1     Fehler:       	Weiß=4     	Schwarz=4     Ungenau:       	Weiß=2     	Schwarz=2     OK:         	Weiß=3     	Schwarz=7     Bester:       	Weiß=3     	Schwarz=4     Stark:        	Weiß=2     	---} 1/2-1/2

[Event "European Women Rapid-ch 2023"]
[Site "Monaco"]
[Date "2024.01.13"]
[Round "4.8"]
[White "Monpeurt, Cyrielle"]
[Black "Ushenina, Anna"]
[Result "0-1"]
[ECO "B07"]
[WhiteElo "2187"]
[BlackElo "2415"]
[Annotator "ChessBase"]
[PlyCount "40"]
[EventDate "2023.12.19"]
[EventType "swiss"]
[EventCountry "MNC"]
[SourceTitle "playchess.com"]
[Source "ChessBase"]
[SourceQuality "1"]
[TimeControl "900+10"]

1. e4 {[%emt 0:00:02]} d6 {[%emt 0:00:03]} 2. d4 {[%emt 0:00:01]} Nf6 {[%emt 0:00:02]} 3. Nc3 {[%emt 0:00:02]} e5 {[%emt 0:00:01]} 4. dxe5 {[%emt 0:00:05]} dxe5 {[%emt 0:00:01]} 5. Qxd8+ {[%emt 0:00:02]} Kxd8 {[%emt 0:00:01]} 6. f4 {[%emt 0:00:18]} Bb4 {[%emt 0:00:12]} 7. Bd3 {[%emt 0:00:21]} Re8 {[%emt 0:00:24]} 8. fxe5 {[%emt 0:00:16]} Nxe4 {[%emt 0:02:19]} 9. Bxe4 {[%emt 0:00:04]} Bxc3+ {[%emt 0:00:17]} 10. bxc3 {[%emt 0:00:03]} Rxe5 {[%emt 0:00:03]} 11. Nf3 {[%emt 0:01:15]} Rxe4+ {[%emt 0:00:03]} 12. Kf2 {[%emt 0:00:01]} f6 {[%emt 0:00:51]} 13. Rd1+ {[%emt 0:01:16]} Ke8 {[%emt 0:00:45]} 14. Rb1 {[%emt 0:01:12]} Nc6 {[%emt 0:00:16]} 15. Rb5 {[%emt 0:00:44]} b6 {[%emt 0:00:19]} 16. h3 {[%emt 0:01:22]} Ba6 {[%emt 0:00:21]} 17. Rh5 {[%emt 0:00:19]} h6 {[%emt 0:00:11]} 18. Be3 {[%emt 0:01:01]} Rd8 {[%emt 0:00:27]} 19. Nd4 {[%emt 0:01:17]} Ne7 {[%emt 0:01:01]} 20. g4 {[%emt 0:01:59]} c5 {[%emt 0:00:31]} 0-1